bitfinex-derivatives/quotes_SOLF0:USTF0_20240913
["timestamp","ask_amount","ask_price","bid_price","bid_amount"]
[1726245060004,3.6383,137.41,137.38,3.6389]
[1726245060701,3.6383,137.41,137.37,31.5991]
[1726245061005,3.6383,137.41,137.37,27.96]
[1726245061505,3.6383,137.41,137.34,31.62425899]
[1726245061506,2.7431,137.45,137.39,27.96]
[1726245061702,15.69800779,137.49,137.39,27.96]
[1726245061896,3.6373,137.45,137.41,31.5981]
[1726245062199,19.82219914,137.49,137.41,27.96]
[1726245062200,15.69799914,137.48,137.41,27.96]
[1726245062505,3.6375,137.44,137.41,27.96]
[1726245064307,3.6376,137.43,137.41,27.96]
[1726245065496,4.1242,137.49,137.41,27.96]
[1726245065696,4.1242,137.49,137.41,31.5981]
[1726245065904,3.6375,137.44,137.41,31.5981]
[1726245066206,3.6375,137.44,137.41,35.29676911]
[1726245066410,3.6378,137.43,137.4,3.6384]
[1726245066609,3.6378,137.43,137.39,27.96]
[1726245066801,4.1242,137.49,137.39,27.96]
[1726245067604,27.96,137.46,137.35,27.96]
[1726245067806,15.69799914,137.45,137.35,27.96]
[1726245068196,3.6391,137.38,137.35,27.96]
[1726245068807,15.69799914,137.45,137.35,27.96]
[1726245069298,15.69799914,137.45,137.36,3.6393]
[1726245071614,15.69799914,137.45,137.37,3.6392]
[1726245072206,3.6386,137.4,137.38,17.47]
[1726245072409,15.69799914,137.45,137.38,17.47]
[1726245072811,3.6387,137.39,137.38,17.47]
[1726245074607,3.6385,137.4,137.38,17.47]
[1726245074910,15.69799914,137.45,137.38,17.47]
[1726245076212,20.2324,137.44,137.36,17.47]
[1726245076407,15.69799914,137.43,137.36,17.47]
[1726245076609,17.06499914,137.43,137.36,17.47]
[1726245076810,17.06499914,137.43,137.38,17.47]
[1726245077315,3.6386,137.4,137.38,17.47]
[1726245077512,15.7003577,137.42,137.38,17.47]
[1726245077706,1.367,137.43,137.38,17.47]
[1726245078312,2.7624,137.44,137.4,17.47]
[1726245078619,3.6378,137.43,137.4,17.47]
[1726245078816,2.7624,137.44,137.4,17.47]
[1726245079123,15.69812824,137.47,137.42,17.47]
[1726245079316,17.47,137.51,137.42,17.47]
[1726245079517,15.69812824,137.5,137.42,17.47]
[1726245079819,3.5799653,137.49,137.42,17.47]
[1726245080122,3.6374,137.44,137.43,17.47]
[1726245080324,3.5799653,137.49,137.43,17.47]
[1726245080824,15.69812824,137.5,137.45,17.47]
[1726245081016,19.73222824,137.52,137.45,17.47]
[1726245081319,23.45974363,137.52,137.45,17.47]
[1726245081718,3.6368,137.47,137.45,17.47]
[1726245081914,28.47,137.46,137.27,226.0]
[1726245082116,17.47,137.39,137.31,17.47]
[1726245082822,3.6397,137.36,137.31,21.1108]
[1726245083024,2.8336,137.38,137.31,21.1108]
[1726245083418,3.6399,137.35,137.31,17.47]
[1726245083819,2.8336,137.38,137.31,17.47]
[1726245084218,3.6399,137.35,137.3,31.621]
[1726245084419,2.8336,137.38,137.32,27.98]
[1726245084612,27.98,137.43,137.32,27.98]
[1726245084825,2.8105,137.42,137.32,27.98]
[1726245085024,2.8105,137.42,137.33,3.59922173]
[1726245085424,18.51359607,137.42,137.33,3.59922173]
[1726245085613,2.8105,137.42,137.33,3.59922173]
[1726245087220,2.8105,137.42,137.32,27.98]
[1726245087528,30.7905,137.42,137.32,3.56581717]
[1726245087725,30.7905,137.42,137.3,31.6208]
[1726245087926,15.70564205,137.41,137.28,31.68856639]
[1726245088124,3.6411,137.3,137.26,3.642]
[1726245088323,3.66632427,137.34,137.23,27.98]
[1726245088526,29.3978,137.4,137.21,27.98]
[1726245088527,32.1723,137.33,137.21,27.98]
[1726245088833,3.6425,137.25,137.21,31.6234]
[1726245089022,3.6425,137.25,137.21,35.29008843]
[1726245089830,3.6425,137.25,137.22,3.6431]
[1726245090023,3.6422,137.26,137.22,3.6431]
[1726245090240,31.66622026,137.32,137.21,27.98]
[1726245090926,31.66622026,137.32,137.21,31.6233]
[1726245091228,3.68622026,137.32,137.21,27.98]
[1726245091630,3.68622026,137.32,137.22,3.6431]
[1726245092228,19.90241929,137.33,137.24,27.98]
[1726245092431,7.76810856,137.33,137.24,27.98]
[1726245092939,3.6415,137.29,137.24,35.20960774]
[1726245093240,7.76810856,137.33,137.24,31.56720774]
[1726245093441,3.6416,137.28,137.24,35.20980774]
[1726245093629,4.1923,137.33,137.26,27.98]
[1726245094637,4.1923,137.33,137.26,31.6648585]
[1726245094939,3.6415,137.29,137.26,31.6648585]
[1726245095238,4.1923,137.33,137.26,27.98]
[1726245095538,4.1923,137.33,137.25,3.55587205]
[1726245095738,4.1923,137.33,137.23,27.98]
[1726245096238,3.6419,137.27,137.23,31.60265384]
[1726245097736,4.1923,137.33,137.23,31.60265384]
[1726245098929,3.6422,137.26,137.23,35.24545384]
[1726245099440,3.6425,137.25,137.21,27.98]
[1726245099638,3.6425,137.25,137.22,3.56753939]
[1726245100438,3.6425,137.25,137.22,7.21073939]
[1726245101132,3.6423,137.26,137.23,3.6429]
[1726245102841,3.6423,137.26,137.22,7.21063939]
[1726245103029,3.6423,137.26,137.22,3.6431]
[1726245103229,27.98,137.32,137.2,3.6435]
[1726245103430,27.98,137.3,137.21,3.59101049]
[1726245103741,3.6429,137.24,137.21,3.59101049]
[1726245103941,3.6429,137.24,137.21,7.23441049]
[1726245104235,3.6429,137.24,137.21,3.6434]
[1726245104741,3.6429,137.24,137.21,7.25882674]
[1726245105741,3.6429,137.24,137.21,3.6434]
[1726245106541,3.6429,137.23,137.2,7.21966921]
[1726245106741,4.1923,137.33,137.22,27.98]
[1726245106947,4.1923,137.33,137.25,27.98]
[1726245106948,2.7745,137.33,137.25,27.98]
[1726245107136,3.6409,137.31,137.25,31.69236289]
[1726245107443,2.7745,137.33,137.25,31.69236289]
[1726245107839,3.6409,137.31,137.25,31.69236289]
[1726245108433,3.6411,137.3,137.25,31.69236289]
[1726245108844,3.6411,137.3,137.27,3.6417]
[1726245109438,3.6414,137.29,137.26,3.642]
[1726245109838,2.7745,137.33,137.25,27.98]
[1726245110042,2.7745,137.33,137.23,31.68117458]
[1726245110236,1.4074,137.32,137.23,27.98]
[1726245110440,3.6419,137.27,137.23,27.98]
[1726245111038,3.6419,137.27,137.24,3.6425]
[1726245111544,3.6419,137.27,137.23,27.98]
[1726245111743,3.6419,137.27,137.24,3.6426]
[1726245115246,3.6417,137.28,137.25,3.6424]
[1726245115442,1.4074,137.32,137.25,3.6424]
[1726245115749,1.4074,137.32,137.23,27.98]
[1726245115750,3.642,137.27,137.24,3.6425]
[1726245116651,3.6417,137.28,137.25,3.6424]
[1726245117349,27.98,137.31,137.21,27.98]
[1726245118344,3.6425,137.25,137.22,3.6431]
[1726245118546,27.98,137.29,137.19,27.98]
[1726245118747,27.98,137.29,137.19,31.60006604]
[1726245119143,3.6428,137.24,137.19,31.60006604]
[1726245120254,3.6428,137.24,137.2,3.6436]
[1726245120452,3.6428,137.24,137.19,31.60006604]
[1726245120954,2.762,137.26,137.19,31.60006604]
[1726245121150,2.762,137.26,137.17,27.98]
[1726245121358,3.6432,137.22,137.19,3.6438]
[1726245121549,1.3416,137.25,137.16,164.5943302]
[1726245121946,1.3416,137.25,137.18,3.6442]
[1726245123551,3.6435,137.21,137.18,3.6442]
[1726245124651,3.6433,137.22,137.19,3.6439]
[1726245124950,1.3416,137.25,137.16,192.5743302]
[1726245125159,3.6429,137.23,137.18,27.98]
[1726245125547,1.3416,137.25,137.18,27.98]
[1726245126346,3.6433,137.22,137.19,3.6438]
[1726245126753,3.6431,137.23,137.2,3.6436]
[1726245127051,1.3416,137.25,137.16,192.5743302]
[1726245127244,3.6434,137.22,137.16,192.5743302]
[1726245127450,3.6434,137.22,137.19,3.6438]
[1726245128258,3.643,137.23,137.2,3.6437]
[1726245128956,3.6432,137.22,137.19,3.6439]
[1726245129154,1.3416,137.25,137.16,192.5743302]
[1726245129360,1.3416,137.25,137.18,3.6441]
[1726245130058,1.3416,137.25,137.16,192.5743302]
[1726245130463,29.3216,137.25,137.16,192.5743302]
[1726245130664,3.6431,137.23,137.16,192.5743302]
[1726245130862,1.3416,137.25,137.16,192.5743302]
[1726245131157,3.6437,137.21,137.16,192.5743302]
[1726245131357,1.3416,137.25,137.16,192.5743302]
[1726245131961,3.6438,137.2,137.17,3.6444]
[1726245132258,3.6438,137.2,137.14,674.26218189]
[1726245132259,17.5,137.2,137.12,17.5]
[1726245132567,3.6447,137.17,137.13,3.6454]
[1726245132864,3.6447,137.17,137.12,17.5]
[1726245133165,21.13706059,137.2,137.14,3.6451]
[1726245134159,3.6447,137.17,137.13,3.6455]
[1726245136264,6.34532404,137.19,137.13,3.6455]
[1726245136265,3.6448,137.16,137.13,3.6455]
[1726245136658,6.34532404,137.19,137.13,3.6455]
[1726245136971,3.645,137.16,137.12,3.6457]
[1726245137161,3.645,137.16,137.1,28.02]
[1726245137464,3.6446,137.17,137.1,31.63186775]
[1726245137862,3.6446,137.17,137.13,3.6454]
[1726245138268,3.6444,137.18,137.1,31.63186775]
[1726245138568,2.7557,137.19,137.1,31.63186775]
[1726245139265,3.645,137.16,137.1,28.02]
[1726245139683,3.645,137.16,137.11,3.66537416]
[1726245139865,7.65652219,137.19,137.12,3.6456]
[1726245140269,7.65652219,137.19,137.11,3.66938561]
[1726245140466,3.6448,137.17,137.13,3.6454]
[1726245140867,7.65652219,137.19,137.13,3.6454]
[1726245141066,3.6447,137.17,137.13,3.6454]
[1726245141366,35.67652219,137.19,137.12,3.6458]
[1726245141563,3.6455,137.14,137.09,3.6384865]
[1726245141967,3.6455,137.14,137.1,3.6462]
[1726245142562,3.6451,137.15,137.1,3.6462]
[1726245142776,28.02,137.17,137.1,3.6462]
[1726245143364,3.6455,137.14,137.1,3.6462]
[1726245143772,28.02,137.17,137.09,3.6466]
[1726245143969,28.02,137.17,137.06,28.02]
[1726245144169,28.02,137.17,137.06,31.5946662]
[1726245144475,3.6454,137.14,137.1,3.6464]
[1726245144873,3.6454,137.14,137.06,31.5946662]
[1726245145077,35.67652219,137.19,137.06,31.5946662]
[1726245145964,3.6451,137.15,137.08,28.02]
[1726245146480,3.6451,137.15,137.1,3.6463]
[1726245146682,3.6454,137.14,137.1,3.6463]
[1726245147681,3.6456,137.13,137.1,3.6463]
[1726245147981,3.6456,137.13,137.08,28.02]
[1726245147982,3.6456,137.13,137.09,3.6466]
[1726245148374,35.67652219,137.19,137.08,28.02]
[1726245148680,7.65652219,137.19,137.08,28.02]
[1726245149073,3.6451,137.15,137.11,3.6459]
[1726245149573,3.6451,137.15,137.08,28.02]
[1726245149772,7.65652219,137.19,137.08,28.02]
[1726245150175,3.6452,137.15,137.11,3.6461]
[1726245150374,7.65652219,137.19,137.11,3.6461]
[1726245150775,7.65652219,137.19,137.08,28.02]
[1726245151582,7.65652219,137.19,137.12,3.6457]
[1726245153385,7.65652219,137.19,137.08,28.02]
[1726245153386,7.65652219,137.19,137.11,3.6461]
[1726245153675,3.6453,137.15,137.11,3.6461]
[1726245154175,17.52,137.17,137.11,3.6461]
[1726245154575,17.52,137.15,137.06,3.5746662]
[1726245154887,17.52,137.14,137.1,3.6462]
[1726245155282,3.6457,137.13,137.1,3.6462]
[1726245158087,17.52,137.17,137.08,17.52]
[1726245158285,25.17652219,137.19,137.1,17.52]
[1726245158676,3.645,137.16,137.12,3.6456]
[1726245158880,25.17652219,137.19,137.12,3.6456]
[1726245159081,17.52,137.18,137.1,17.52]
[1726245160080,17.52,137.18,137.12,3.6457]
[1726245161883,3.6452,137.15,137.12,3.6457]
[1726245162288,17.52,137.18,137.1,17.52]
[1726245162289,3.6454,137.14,137.11,3.646]
[1726245162481,17.52,137.16,137.08,17.52]
[1726245162880,3.6456,137.13,137.1,3.6462]
[1726245164284,3.6459,137.12,137.09,3.6466]
[1726245165186,3.6461,137.11,137.08,3.6468]
[1726245166293,3.6466,137.1,137.07,3.6471]
[1726245166690,3.6468,137.09,137.04,3.61255716]
[1726245166984,3.62751222,137.12,137.01,17.52]
[1726245166985,17.52,137.1,137.01,17.52]
[1726245167489,3.6473,137.07,137.04,3.6478]
[1726245168787,3.6475,137.06,137.03,3.6481]
[1726245168985,17.52,137.08,136.97,3.66807371]
[1726245169187,2.7315,137.07,136.98,17.52]
[1726245169391,4.87643025,137.12,137.03,17.52]
[1726245169586,2.7315,137.11,137.03,17.52]
[1726245170099,3.647,137.08,137.05,3.6477]
[1726245170390,2.7315,137.11,137.03,17.52]
[1726245170589,2.7315,137.11,137.04,3.6478]
[1726245170791,17.52,137.1,137.04,3.6478]
[1726245170988,3.6469,137.08,137.04,3.6479]
[1726245171885,3.6473,137.07,137.04,3.6479]
[1726245172285,17.52,137.1,137.03,3.6481]
[1726245172484,17.52,137.1,137.01,21.0783071]
[1726245172686,17.52,137.1,137.01,17.52]
[1726245173582,3.6477,137.05,137.02,3.6484]
[1726245174695,17.52,137.08,137.01,17.52]
[1726245175088,3.6478,137.05,137.02,3.6483]
[1726245176693,7.33821127,137.05,137.02,3.6483]
[1726245176886,3.6478,137.05,137.02,3.6483]
[1726245178395,3.6476,137.06,137.03,3.6482]
[1726245178888,3.6478,137.05,136.95,7.3004]
[1726245179098,3.6478,137.05,137.02,3.6483]
[1726245179695,3.6476,137.06,137.02,3.6483]
[1726245179890,17.52,137.08,137.02,3.6483]
[1726245181097,3.6477,137.06,137.02,3.6483]
[1726245181599,3.6477,137.06,137.03,3.6482]
[1726245182303,17.52,137.08,137.02,3.6484]
[1726245182595,3.6478,137.05,137.02,3.6484]
[1726245182989,17.52,137.08,137.0,17.52]
[1726245183188,3.6477,137.06,137.03,3.6482]
[1726245183596,3.6472,137.07,137.04,3.6478]
[1726245184402,17.52,137.1,137.03,3.6481]
[1726245184794,3.6476,137.06,137.03,3.6481]
[1726245185599,3.6473,137.07,137.01,3.56659563]
[1726245186001,3.6473,137.07,137.03,3.6481]
[1726245186198,3.6475,137.06,137.03,3.6481]
[1726245190400,2.7315,137.11,137.01,3.56659563]
[1726245190401,2.7315,137.11,137.04,17.52]
[1726245190997,3.6468,137.09,137.04,17.52]
[1726245191505,3.6468,137.09,137.05,3.6476]
[1726245192205,3.6468,137.09,137.06,3.6474]
[1726245192597,3.6469,137.08,137.04,17.52]
[1726245192805,17.52,137.1,137.03,17.52]
[1726245193305,3.6473,137.07,137.04,3.6478]
[1726245194005,17.52,137.1,137.03,3.6481]
[1726245194507,17.52,137.08,136.99,17.52]
[1726245194804,17.52,137.08,137.02,3.6485]
[1726245195005,3.6479,137.05,137.02,3.6485]
[1726245195807,17.52,137.08,137.01,3.6486]
[1726245196699,17.52,137.08,137.02,3.6484]
[1726245196902,3.6479,137.05,137.02,3.6484]
[1726245197399,17.52,137.08,137.01,3.6486]
[1726245197604,17.52,137.08,136.99,17.52]
[1726245197793,17.52,137.06,137.0,3.6488]
[1726245197998,3.6484,137.03,136.99,17.52]
[1726245198199,17.52,137.06,136.99,17.52]
[1726245198906,17.52,137.06,136.95,164.84605962]
[1726245199103,3.68693129,137.05,136.97,17.52]
[1726245199305,6.54073129,137.05,136.97,17.52]
[1726245199602,3.6484,137.03,136.97,17.52]
[1726245200013,3.6484,137.03,136.99,3.6491]
[1726245200500,3.6484,137.03,136.97,17.52]
[1726245201603,3.6486,137.02,136.99,3.6492]
[1726245201804,20.3738,137.05,136.95,182.36605962]
[1726245202004,1.3159,137.04,136.97,3.6497]
[1726245202306,1.3159,137.04,136.95,182.36605962]
[1726245202505,1.3159,137.04,136.97,3.6498]
[1726245202707,1.3159,137.04,136.97,17.52]
[1726245202907,2.8538,137.05,136.99,17.52]
[1726245203109,2.8538,137.05,137.0,3.6488]
[1726245203309,3.6481,137.04,137.0,3.6488]
[1726245203705,2.8538,137.05,136.99,17.52]
[1726245203706,2.8538,137.05,136.99,21.1692]
[1726245203913,6.49388399,137.05,136.99,21.1692]
[1726245204099,3.6485,137.02,136.99,21.1692]
[1726245204908,3.6483,137.03,136.99,21.1692]
[1726245205106,3.6483,137.03,137.0,3.649]
[1726245205402,3.6476,137.06,136.99,17.52]
[1726245206008,3.6476,137.06,137.02,3.6483]
[1726245206210,3.6479,137.05,137.02,3.6483]
[1726245206414,3.6479,137.05,136.99,17.52]
[1726245207109,3.6479,137.05,137.01,3.6486]
[1726245207405,3.6475,137.06,136.99,17.52]
[1726245207606,2.7702,137.09,137.02,17.52]
[1726245207810,2.7702,137.09,137.03,3.6481]
[1726245208011,3.6474,137.07,137.03,3.6481]
[1726245208312,2.7702,137.09,137.02,17.52]
[1726245208313,2.7702,137.09,137.02,21.1684]
[1726245208505,3.6477,137.06,137.02,21.1684]
[1726245208706,3.6477,137.06,137.02,3.6484]
[1726245209408,3.6477,137.06,137.03,3.6482]
[1726245209808,3.6477,137.06,137.01,21.19771057]
[1726245210112,3.6477,137.06,137.03,11.21]
[1726245211211,3.6477,137.06,137.03,14.8582]
[1726245211808,3.6475,137.06,137.03,11.21]
[1726245212614,3.6478,137.05,137.02,3.6485]
[1726245212818,3.6478,137.05,137.02,11.21]
[1726245213620,11.21,137.05,137.0,3.6489]
[1726245213810,11.21,137.05,137.01,11.21]
[1726245214110,11.21,137.06,137.02,14.8585]
[1726245214315,11.21,137.06,137.03,11.21]
[1726245215013,11.21,137.06,137.01,14.8586]
[1726245216916,11.21,137.04,136.99,11.21]
[1726245217712,3.6484,137.03,137.0,3.649]
[1726245219910,3.6484,137.03,136.99,14.8591]
[1726245220114,11.21,137.04,136.99,14.8591]
[1726245220507,3.6486,137.02,136.99,14.8591]
[1726245220714,11.21,137.04,136.99,11.21]
[1726245221113,3.6487,137.02,136.99,11.21]
[1726245221818,11.21,137.02,136.98,11.21]
[1726245222123,11.21,137.03,136.98,11.21]
[1726245222308,3.6487,137.02,136.99,11.21]
[1726245223822,3.6487,137.02,136.99,14.8591]
[1726245224119,3.6487,137.02,136.99,11.21]
[1726245224910,3.6489,137.01,136.98,3.6494]
[1726245225117,3.6489,137.01,136.98,14.8594]
[1726245225421,3.6486,137.02,136.98,14.8594]
[1726245225608,3.6486,137.02,136.99,11.21]
[1726245225809,11.21,137.03,136.99,11.21]
[1726245226121,13.8429,137.04,137.0,11.21]
[1726245226711,3.6484,137.03,137.0,11.21]
[1726245228432,3.6484,137.03,137.0,14.8589]
[1726245231923,3.6484,137.03,137.0,11.21]
[1726245232228,3.6485,137.02,136.99,14.8592]
[1726245232531,13.8429,137.04,136.99,11.21]
[1726245232720,3.6487,137.02,136.99,11.21]
[1726245234528,3.6487,137.02,136.98,14.8594]
[1726245234723,3.6488,137.01,136.98,14.8594]
[1726245234926,11.21,136.99,136.95,164.84605962]
[1726245235225,11.21,136.97,136.93,11.21]
[1726245235729,11.21,136.96,136.91,11.21]
[1726245236230,14.8606,136.95,136.9,3.6516]
[1726245236432,14.8606,136.95,136.91,11.21]
[1726245237322,14.8606,136.95,136.9,3.6516]
[1726245237323,3.6502,136.96,136.92,11.21]
[1726245238129,6.58332281,136.98,136.95,11.21]
[1726245238130,2.8484,136.98,136.95,11.21]
[1726245238325,11.21,137.03,136.97,11.21]
[1726245238920,15.74095505,137.04,136.98,11.21]
[1726245239232,11.21,137.04,137.0,11.21]
[1726245239432,26.95095505,137.04,137.0,11.21]
[1726245239634,15.74095505,137.03,137.0,11.21]
[1726245239830,3.6483,137.03,137.01,11.21]
[1726245240833,15.74095505,137.04,136.92,3.73419277]
[1726245241031,15.74095505,137.04,137.02,11.21]
[1726245241237,4.1609,137.05,137.02,11.21]
[1726245241441,7.8088,137.05,137.02,11.21]
[1726245242137,6.3696,137.05,137.02,11.21]
[1726245242730,6.3696,137.05,137.0,21.1589]
[1726245243128,3.6476,137.06,137.02,17.51]
[1726245243435,4.90434525,137.08,137.02,17.51]
[1726245243736,1.328,137.08,137.02,17.51]
[1726245244130,3.6473,137.07,137.03,3.6481]
[1726245244636,3.6475,137.06,137.02,21.1585]
[1726245244834,1.328,137.08,137.02,17.51]
[1726245245340,3.6476,137.06,137.02,21.1585]
[1726245246544,3.6476,137.06,137.0,3.61914454]
[1726245246545,1.328,137.08,137.0,17.51]
[1726245246745,2.8252,137.07,137.0,17.51]
[1726245246938,3.6481,137.04,137.0,21.159]
[1726245247543,3.6478,137.05,137.01,3.6487]
[1726245248946,2.8252,137.07,137.0,17.51]
[1726245249547,3.6479,137.05,137.01,3.6487]
[1726245250747,2.8252,137.07,137.0,17.51]
[1726245251051,20.3352,137.07,136.99,17.51]
[1726245251247,3.6485,137.02,136.99,17.51]
[1726245251956,17.51,137.05,136.97,21.1597]
[1726245252153,15.7339137,137.04,136.97,21.1597]
[1726245252341,3.6489,137.01,136.97,21.1597]
[1726245254855,3.5916221,137.01,136.87,3.65345269]
[1726245255047,1.4422,137.0,136.93,17.51]
[1726245255246,1.4422,137.0,136.88,1.3453]
[1726245255247,18.9522,137.0,136.88,1.3453]
[1726245255456,18.9522,137.0,136.92,17.51]
[1726245255846,3.65,136.97,136.92,17.51]
[1726245256046,17.51,136.98,136.89,17.51]
[1726245256252,15.74373051,136.97,136.89,17.51]
[1726245256453,17.51,136.98,136.89,17.51]
[1726245256454,3.6508,136.94,136.89,21.1617]
[1726245257357,3.6508,136.94,136.9,3.6517]
[1726245257756,17.51,136.97,136.89,17.51]
[1726245258151,3.6511,136.93,136.89,17.51]
[1726245258554,3.71839182,136.95,136.89,17.51]
[1726245258861,3.6511,136.93,136.89,21.162]
[1726245259256,3.6511,136.93,136.89,17.51]
[1726245259661,17.51,136.99,136.89,17.51]
[1726245259958,17.51,136.99,136.91,17.51]
[1726245260158,20.2403,136.99,136.91,17.51]
[1726245260357,3.6506,136.94,136.91,17.51]
[1726245264059,3.651,136.93,136.89,21.1619]
[1726245265268,3.6508,136.94,136.9,3.6516]
[1726245265671,20.2403,136.99,136.9,3.6516]
[1726245265862,20.2403,136.99,136.89,21.1619]
[1726245265863,3.6509,136.93,136.89,21.1619]
[1726245269577,3.6509,136.93,136.9,3.6517]
[1726245269780,3.6507,136.94,136.9,3.6517]
[1726245270075,20.2403,136.99,136.89,17.51]
[1726245270379,3.6508,136.94,136.89,17.51]
[1726245270580,20.2403,136.99,136.9,3.6515]
[1726245272070,11.23,136.96,136.92,11.23]
[1726245272483,11.23,136.97,136.93,11.23]
[1726245273682,3.651,136.93,136.9,3.6516]
[1726245273875,3.651,136.93,136.92,11.23]
[1726245274272,3.6507,136.94,136.92,11.23]
[1726245275280,2.7303,136.99,136.93,11.23]
[1726245275466,2.7303,136.99,136.91,3.59721458]
[1726245275467,2.7303,136.99,136.97,11.23]
[1726245275879,1.4422,137.0,136.97,11.23]
[1726245276181,12.6722,137.0,136.93,3.65200562]
[1726245276377,12.6722,137.0,136.96,11.23]
[1726245276685,1.4422,137.0,136.97,11.23]
[1726245276981,3.6496,136.98,136.97,11.23]
[1726245277879,3.6494,136.99,136.97,11.23]
[1726245278182,3.6494,136.99,136.96,3.6501]
[1726245278576,3.6494,136.99,136.95,21.1802]
[1726245279080,5.0914,137.0,136.96,3.65]
[1726245279381,1.4422,137.0,136.96,3.65]
[1726245279782,3.6493,136.99,136.96,3.65]
[1726245279979,1.4422,137.0,136.96,3.65]
[1726245280482,5.0914,137.0,136.96,3.65]
[1726245281075,3.6492,137.0,136.97,3.6498]
[1726245281474,3.6494,136.99,136.95,17.53]
[1726245282875,3.6494,136.99,136.96,3.65]
[1726245283493,17.53,137.03,136.95,17.53]
[1726245283988,3.6494,136.99,136.95,21.1802]
[1726245284386,3.6494,136.99,136.95,21.26528376]
[1726245284686,3.6491,137.0,136.97,3.6498]
[1726245284887,3.60785326,137.02,136.97,3.6498]
[1726245285378,3.60785326,137.02,136.95,21.26528376]
[1726245286188,17.53,137.03,136.95,17.53]
[1726245286685,3.59809706,137.02,136.95,17.53]
[1726245287080,3.6491,136.99,136.95,21.1799]
[1726245287280,3.6491,136.99,136.95,17.53]
[1726245287584,3.59809706,137.02,136.95,21.1799]
[1726245287782,17.53,137.03,136.95,21.1799]
[1726245288182,17.53,137.03,136.96,3.6496]
[1726245288687,3.6488,137.0,136.96,3.6496]
[1726245290286,3.6488,137.0,136.97,3.6494]
[1726245290887,3.649,136.99,136.96,3.6496]
[1726245292690,3.6493,136.98,136.95,21.1799]
[1726245292882,3.6493,136.98,136.95,17.53]
[1726245293787,3.6495,136.97,136.95,17.53]
[1726245294284,3.6495,136.97,136.93,21.20247911]
[1726245294490,3.6495,136.97,136.93,17.53]
[1726245294881,21.10911167,137.02,136.93,17.53]
[1726245295191,17.53,137.0,136.91,17.53]
[1726245295385,2.6713,136.99,136.91,21.12325374]
[1726245295889,3.6498,136.96,136.92,3.6507]
[1726245296690,3.6501,136.95,136.92,3.6507]
[1726245296994,18.9626,136.98,136.9,21.1812]
[1726245297294,3.6507,136.93,136.9,17.53]
[1726245298492,3.6507,136.93,136.9,21.1813]
[1726245300079,3.6507,136.93,136.92,11.23]
[1726245300792,1.4326,136.98,136.92,11.23]
[1726245300989,1.4326,136.98,136.95,11.23]
[1726245301191,1.4326,136.98,136.96,11.23]
[1726245301696,1.4326,136.98,136.95,11.23]
[1726245301892,3.65,136.97,136.93,3.6508]
[1726245302093,3.65,136.97,136.95,11.23]
[1726245303886,3.6501,136.96,136.95,11.23]
[1726245306101,1.4326,136.98,136.91,3.6513]
[1726245306102,3.6507,136.94,136.91,3.6513]
[1726245306396,3.6507,136.94,136.92,11.23]
[1726245306988,3.6505,136.95,136.93,11.23]
[1726245307390,12.6626,136.98,136.93,11.23]
[1726245307595,11.23,136.97,136.93,11.23]